Workbook

Sheet 市納金計算表
B2: ≪新設分分岐プール額計算表≫ | J2: ≪加入金計算表（一般用）≫
D4: （入力値） | G4: （金 額） | K4: （入力値） | N4: （入力値） | Q4: （金額）
J6: 撤去） | K6: 口径 | L6: 13 | M6: × | N6: 本数 | O6: 1 | P6: = | Q6: =(VLOOKUP(L6,加入金甲,2,0)*O6) -> 66000 | R6: a
C7: 道路形態 | D7: 舗装道 | G7: =VLOOKUP(D9,IF(D7="砂利道",口径金額砂利道,口径金額舗装道),2,0) -> 6191900
J8: 新設） | K8: 口径 | L8: 20 | M8: × | N8: 本数 | O8: 1 | P8: = | Q8: =VLOOKUP(L8,加入金甲,2,0)*O8 -> 115500 | R8: b
C9: 口径 | D9: 100 | E9: ⇒ | G9: =IF(D11="あり",G7*1.35,G7) -> 8359065 | H9: A
C11: 夜間工事 | D11: あり | L11: 加入金額 （b-a）
N12: =IF(Q6>Q8,0,Q8-Q6) -> 49500
J15: ※ | K15: 口径変更の場合、既設管の加入金を充当できるが、新設管の 加入金を上回った額の還付は行わない。
C16: 先行分岐 | D16: なし | E16: ⇒ | G16: =IF(D16="あり",date!G21,0) -> 0 | H16: B
J17: ※ | K17: 分岐プール額及び加入金については消費税を含んだ額であり、 工事検査手数料については非課税です。
C18: 本復旧軽減 | D18: 自己都合 | E18: ⇒ | G18: =IF(D18="あり",IF(D7="舗装道",IF(D11="なし",IF(D9<=40,date!E35,IF(AND(40<D9,D9<=50),date!E36,date!E36)),IF(D9<=40,date!F35,IF(AND(40<D9,D9<=50),date!F36,date!F36))),0),IF(D18="自己都合",IF(D7="舗装道",IF(D11="なし",IF(D9<=25,date!G35,IF(AND(40<D9,D9<=50),date!G36,date!G36)),IF(D9<=40,date!H35,IF(AND(40<D9,D9<=50),date!H36,date!H36))),0),0)) -> -85388 | H18: C
J19: ※ | K19: 分岐プール額及び加入金の他に、工事検査手数料が必要です。 （下記参照）
C20: 新設分分岐プール額 (A+B+C) | F20: =SUM(G9,G14,G16,G18) -> 8273677
K21: 工事検査手数料
L22: 給水管の 呼 び 径 | N22: 給水装置工事又は私・共有管布設工事
B23: ≪撤去分分岐プール額計算表 1装置につき≫ | N23: 新設、全改造 | Q23: 増設その他
L24: 全ての口径 | N24: 19300 | Q24: 4300
C25: 道路形態 | D25: 舗装道 | L25: （適用）
L26: ⑴ 給水装置工事の中で、内部工事を伴わない先行分岐等の 工事検査手数料は、増設の基準を適用する。
C27: 夜間工事 | D27: なし | E27: ⇒ | G27: =IF(AND(D25="砂利道",D27="なし"),date!E47,(IF(AND(D25="砂利道",D27="あり"),date!E48,IF(AND(D25="舗装道",D27="なし"),date!F47,IF(AND(D25="舗装道",D27="あり"),date!F48,0))))) -> 192500 | L27: ⑵ 本表の工事検査手数料は、１件１工事２ｍ未満の私、共有 管及び修繕等の工事には適用しない。
L28: ⑶ 再検査を必要とする場合については、再度、同額の手数料 を徴収する。
L34: ⑶ 再検査を必要とする場合については、再度、同額の手数料を徴収する。

Sheet 水道料金計算表 (hidden)
A1: ≪料金計算表≫
I2: 水道料金
B3: 【一般用】
O4: 水量料金内訳 | Q4: 使用水量 | U4: 単価 | V4: 金額
J5: 準備料金(A) | K5: =(VLOOKUP(D8,準備料金,2,0))*D10 -> 2240 | Q5: =IF($D$10=1,10,20) -> 20 | R5: m3まで | U5: 65 | V5: =IF(D12<Q6,D12*U5,Q5*U5) -> 1300
C6: （入力値） | J6: + | Q6: =IF($D$10=1,11,21) -> 21 | R6: ～ | S6: =IF($D$10=1,20,40) -> 40 | T6: m3 | U6: 125 | V6: =IF($D$12<Q7,IF($D$12<Q5,0,($D$12-Q5)*U6),(S6-Q5)*U6) -> 2500
J7: 水量料金(B) | K7: =SUM(V5:V11) -> 8200 | M7: ⇒ | Q7: =IF($D$10=1,21,41) -> 41 | R7: ～ | S7: =IF($D$10=1,30,60) -> 60 | T7: m3 | U7: 220 | V7: =IF($D$12<Q8,IF($D$12<Q7,0,($D$12-S6)*U7),(S7-S6)*U7) -> 4400
B8: 口径 | D8: 20 | E8: mm | J8: + | Q8: =IF($D$10=1,31,61) -> 61 | R8: ～ | S8: =IF($D$10=1,100,200) -> 200 | T8: m3 | U8: 230 | V8: =IF($D$12<Q9,IF($D$12<Q8,0,($D$12-S7)*U8),(S8-S7)*U8) -> 0
J9: ="消費税 "&DBCS(TEXT(date!$G$17*100,0))&"％(C)" -> 消費税 １０％(C) | K9: =ROUNDDOWN(SUM(K5,K7)*date!G17,0) -> 1044 | Q9: =IF($D$10=1,101,201) -> 201 | R9: ～ | S9: =IF($D$10=1,3000,6000) -> 6000 | T9: m3 | U9: 245 | V9: =IF($D$12<Q10,IF($D$12<Q9,0,($D$12-S8)*U9),(S9-S8)*U9) -> 0
B10: 使用月数 | D10: 2 | E10: ヵ月 | J10: ↓ | Q10: =IF($D$10=1,3001,6001) -> 6001 | R10: ～ | S10: =IF($D$10=1,10000,20000) -> 20000 | T10: m3 | U10: 255 | V10: =IF($D$12<Q11,IF($D$12<Q10,0,($D$12-S9)*U10),(S10-S9)*U10) -> 0
I11: 税込合計(A+B+C) | K11: =SUM(K5,K7,K9) -> 11484 | L11: D | Q11: =IF($D$10=1,10001,20001) -> 20001 | R11: m3以上 | U11: 200 | V11: =IF($D$12>S10,(D12-S10)*U11,0) -> 0
B12: 使用水量 | D12: 60 | E12: m3
I13: 下水道使用料
O14: 下水道使用料内訳 | Q14: 使用水量 | U14: 単価 | V14: 金額
B15: 下水道接続 | D15: あり | Q15: =IF($D$10=1,5,10) -> 10 | R15: m3まで | U15: =IF(D10=1,640,1280) -> 1280 | V15: =IF(D15="あり",U15,0) -> 1280
J16: 下水道使用料(E) | K16: =SUM(V15:V24) -> 6230 | M16: ⇒ | Q16: =IF($D$10=1,6,11) -> 11 | R16: ～ | S16: =IF($D$10=1,10,20) -> 20 | T16: m3 | U16: 70 | V16: =IF(D15="あり",IF($D$12<Q17,IF($D$12<Q15,0,($D$12-Q15)*U16),(S16-Q15)*U16),0) -> 700
J17: + | Q17: =IF($D$10=1,11,21) -> 21 | R17: ～ | S17: =IF($D$10=1,15,30) -> 30 | T17: m3 | U17: 95 | V17: =IF(D15="あり",IF($D$12<Q18,IF($D$12<Q17,0,($D$12-S16)*U17),(S17-S16)*U17),0) -> 950
J18: ="消費税 "&DBCS(TEXT(date!$G$17*100,0))&"％(F)" -> 消費税 １０％(F) | K18: =ROUNDDOWN(K16*date!G17,0) -> 623 | Q18: =IF($D$10=1,16,31) -> 31 | R18: ～ | S18: =IF($D$10=1,30,60) -> 60 | T18: m3 | U18: 110 | V18: =IF(D15="あり",IF($D$12<Q19,IF($D$12<Q18,0,($D$12-S17)*U18),(S18-S17)*U18),0) -> 3300
J19: ↓ | Q19: =IF($D$10=1,31,61) -> 61 | R19: ～ | S19: =IF($D$10=1,100,200) -> 200 | T19: m3 | U19: 150 | V19: =IF(D15="あり",IF($D$12<Q20,IF($D$12<Q19,0,($D$12-S18)*U19),(S19-S18)*U19),0) -> 0
I20: 税込合計(E+F) | K20: =SUM(K16,K18) -> 6853 | L20: G | Q20: =IF($D$10=1,101,201) -> 201 | R20: ～ | S20: =IF($D$10=1,500,1000) -> 1000 | T20: m3 | U20: 160 | V20: =IF(D15="あり",IF($D$12<Q21,IF($D$12<Q20,0,($D$12-S19)*U20),(S20-S19)*U20),0) -> 0
Q21: =IF($D$10=1,501,1001) -> 1001 | R21: ～ | S21: =IF($D$10=1,1000,2000) -> 2000 | T21: m3 | U21: 170 | V21: =IF(D15="あり",IF($D$12<Q22,IF($D$12<Q21,0,($D$12-S20)*U21),(S21-S20)*U21),0) -> 0
Q22: =IF($D$10=1,1001,2001) -> 2001 | R22: ～ | S22: =IF($D$10=1,5000,10000) -> 10000 | T22: m3 | U22: 180 | V22: =IF(D15="あり",IF($D$12<Q23,IF($D$12<Q22,0,($D$12-S21)*U22),(S22-S21)*U22),0) -> 0
B23: 上下水道料金合計(D+G) | G23: =SUM(K11,K20) -> 18337 | Q23: =IF($D$10=1,5001,10001) -> 10001 | R23: ～ | S23: =IF($D$10=1,10000,20000) -> 20000 | T23: m3 | U23: 195 | V23: =IF(D15="あり",IF($D$12<Q24,IF($D$12<Q23,0,($D$12-S22)*U23),(S23-S22)*U23),0) -> 0
Q24: =IF($D$10=1,10001,20001) -> 20001 | R24: m3以上 | U24: 200 | V24: =IF($D$12>S23,(D12-S23)*U24,0) -> 0
I29: 水道料金
B30: 【集合家事用】
O31: 水量料金内訳 | Q31: 使用水量 | U31: 単価 | V31: 金額
B32: ※ ワンルームは７戸以上からが集合家事対象。 | J32: 準備料金(A) | K32: =IF(D36=13,910,IF(D36="","",1020))*E40*D42 -> 4080 | Q32: =IF(D42=1,10*E40,20*E40) -> 40 | R32: m3まで | U32: 65 | V32: =IF($D$44<Q33,(D44*U32),Q32*U32) -> 2600
J33: + | Q33: =IF($D$42=1,(10*$E$40)+1,(20*$E$40)+1) -> 41 | R33: ～ | S33: =IF(D42=1,20*E40,40*E40) -> 80 | T33: m3 | U33: 125 | V33: =IF($D$44<Q34,IF($D$44<Q33,0,(D44-Q32)*U33),(S33-Q32)*U33) -> 2500
C34: （入力値） | J34: 水量料金(B) | K34: =SUM(V32:V38) -> 5100 | M34: ⇒ | Q34: =IF($D$42=1,(20*$E$40)+1,(40*$E$40)+1) -> 81 | R34: ～ | S34: =IF(D42=1,30*E40,60*E40) -> 120 | T34: m3 | U34: 220 | V34: =IF($D$44<Q35,IF($D$44<Q34,0,($D$44-S33)*U34),(S34-S33)*U34) -> 0
J35: + | Q35: =IF($D$42=1,(30*$E$40)+1,(60*$E$40)+1) -> 121 | R35: ～ | S35: =IF(D42=1,100*E40,200*E40) -> 400 | T35: m3 | U35: 230 | V35: =IF($D$44<Q36,IF($D$44<Q35,0,($D$44-S34)*U35),(S35-S34)*U35) -> 0
B36: 子メータ口径 | D36: 20 | E36: mm | J36: ="消費税 "&DBCS(TEXT(date!$G$17*100,0))&"％(C)" -> 消費税 １０％(C) | K36: =ROUNDDOWN(SUM(K32,K34)*date!G17,0) -> 918 | Q36: =IF($D$42=1,(100*$E$40)+1,(200*$E$40)+1) -> 401 | R36: ～ | S36: =IF(D42=1,3000*E40,6000*E40) -> 12000 | T36: m3 | U36: 245 | V36: =IF($D$44<Q37,IF($D$44<Q36,0,($D$44-S35)*U36),(S36-S35)*U36) -> 0
J37: ↓ | Q37: =IF($D$42=1,(3000*$E$40)+1,(6000*$E$40)+1) -> 12001 | R37: ～ | S37: =IF(D42=1,10000*E40,20000*E40) -> 40000 | T37: m3 | U37: 255 | V37: =IF($D$44<Q38,IF($D$44<Q37,0,($D$44-S36)*U37),(S37-S36)*U37) -> 0
B38: 住戸形態 | D38: ファミリー | I38: 税込合計(A+B+C) | K38: =SUM(K32,K34,K36) -> 10098 | L38: D | Q38: =IF(D42=1,(10000*E40)+1,(20000*E40)+1) -> 40001 | R38: m3以上 | U38: 200 | V38: =IF($D$44>S37,(D44-S37)*U38,0) -> 0
B40: 装置数 | D40: 2 | E40: =IF(D38="ワンルーム",ROUNDDOWN(D40/3.3,0),D40) -> 2 | F40: 戸 | I40: 下水道使用料
O41: 下水道使用料内訳 | Q41: 使用水量 | U41: 単価 | V41: 金額
B42: 使用月数 | D42: 2 | E42: ヵ月 | Q42: =IF(D42=1,5*E40,10*E40) -> 20 | R42: m3まで | U42: =IF($D$42=1,540,1080)*E40 -> 2160 | V42: =IF(D46="あり",U42,0) -> 2160
I43: 下水道使用料(E) | K43: =SUM(V42:V51) -> 5460 | M43: ⇒ | Q43: =IF($D$42=1,(5*$E$40)+1,(10*$E$40)+1) -> 21 | R43: ～ | S43: =IF($D$42=1,(10*$E$40),(20*$E$40)) -> 40 | T43: m3 | U43: 70 | V43: =IF(D46="あり",IF($D$44<Q44,IF($D$44<Q42,0,(D44-Q42)*U43),(S43-Q42)*U43),0) -> 1400
B44: 親メータ使用水量 | D44: 60 | E44: m3 | J44: + | Q44: =IF($D$42=1,(10*$E$40)+1,(20*$E$40)+1) -> 41 | R44: ～ | S44: =IF($D$42=1,15*$E$40,30*$E$40) -> 60 | T44: m3 | U44: 95 | V44: =IF(D46="あり",IF($D$44<Q45,IF($D$44<Q44,0,($D$44-S43)*U44),(S44-S43)*U44),0) -> 1900
J45: ="消費税 "&DBCS(TEXT(date!$G$17*100,0))&"％(F)" -> 消費税 １０％(F) | K45: =ROUNDDOWN(K43*date!G17,0) -> 546 | Q45: =IF($D$42=1,(15*$E$40)+1,(30*$E$40)+1) -> 61 | R45: ～ | S45: =IF($D$42=1,30*$E$40,60*$E$40) -> 120 | T45: m3 | U45: 110 | V45: =IF(D46="あり",IF($D$44<Q46,IF($D$44<Q45,0,($D$44-S44)*U45),(S45-S44)*U45),0) -> 0
B46: 下水道接続 | D46: あり | J46: ↓ | Q46: =IF($D$42=1,(30*$E$40)+1,(60*$E$40)+1) -> 121 | R46: ～ | S46: =IF($D$42=1,100*$E$40,200*$E$40) -> 400 | T46: m3 | U46: 150 | V46: =IF(D46="あり",IF($D$44<Q47,IF($D$44<Q46,0,($D$44-S45)*U46),(S46-S45)*U46),0) -> 0
I47: 税込合計(E+F) | K47: =SUM(K43,K45) -> 6006 | L47: G | Q47: =IF($D$42=1,(100*$E$40)+1,(200*$E$40)+1) -> 401 | R47: ～ | S47: =IF($D$42=1,500*$E$40,1000*$E$40) -> 2000 | T47: m3 | U47: 160 | V47: =IF(D46="あり",IF($D$44<Q48,IF($D$44<Q47,0,($D$44-S46)*U47),(S47-S46)*U47),0) -> 0
Q48: =IF($D$42=1,(500*$E$40)+1,(1000*$E$40)+1) -> 2001 | R48: ～ | S48: =IF($D$42=1,1000*$E$40,2000*$E$40) -> 4000 | T48: m3 | U48: 170 | V48: =IF(D46="あり",IF($D$44<Q49,IF($D$44<Q48,0,($D$44-S47)*U48),(S48-S47)*U48),0) -> 0
Q49: =IF($D$42=1,(1000*$E$40)+1,(2000*$E$40)+1) -> 4001 | R49: ～ | S49: =IF($D$42=1,5000*$E$40,10000*$E$40) -> 20000 | T49: m3 | U49: 180 | V49: =IF(D46="あり",IF($D$44<Q50,IF($D$44<Q49,0,($D$44-S48)*U49),(S49-S48)*U49),0) -> 0
B50: 上下水道料金合計(D+G) | G50: =SUM(K38,K47) -> 16104 | Q50: =IF($D$42=1,(5000*$E$40)+1,(10000*$E$40)+1) -> 20001 | R50: ～ | S50: =IF($D$42=1,10000*$E$40,20000*$E$40) -> 40000 | T50: m3 | U50: 195 | V50: =IF(D46="あり",IF($D$44<Q51,IF($D$44<Q50,0,($D$44-S49)*U50),(S50-S49)*U50),0) -> 0
Q51: =IF($D$42=1,(10000*$E$40)+1,(20000*$E$40)+1) -> 40001 | R51: m3以上 | U51: 200 | V51: =IF($D$44>S50,(D44-S50)*U51,0) -> 0
I56: 水道料金
B57: 【公衆浴場用】
J59: 準備料金(A) | K59: =(VLOOKUP(D63,準備料金2,2,0))*D65 -> 13800
J60: + | O60: 水量料金内訳 | Q60: 使用水量 | U60: 単価 | V60: 金額
C61: （入力値） | J61: 水量料金(B) | K61: =$V$61 -> 0 | M61: ⇒ | Q61: 1 | R61: m3につき | U61: 85 | V61: =D67*U61 -> 0
J62: +
B63: 口径 | D63: 40以下 | E63: mm | J63: ="消費税 "&DBCS(TEXT(date!$G$17*100,0))&"％(C)" -> 消費税 １０％(C) | K63: =ROUNDDOWN(SUM(K59,K61)*date!G17,0) -> 1380
J64: ↓
B65: 使用月数 | D65: 2 | E65: ヵ月 | I65: 税込合計(A+B+C) | K65: =SUM(K59,K61,K63) -> 15180 | L65: D
B67: 使用水量 | D67: 0 | E67: m3 | I67: 下水道使用料
O68: 下水道使用料内訳 | Q68: 使用水量 | U68: 単価 | V68: 金額
B69: 下水道接続 | D69: あり | Q69: =IF($D$65=1,300,600) -> 600 | R69: m3まで | U69: =IF($D$65=1,9000,18000) -> 18000 | V69: =IF(D69="あり",IF($D$67<Q69,U69,U69),0) -> 18000
I70: 下水道使用料(E) | K70: =IF(D69="なし",0,SUM(V69:V70)) -> 18000 | M70: ⇒ | Q70: =IF($D$65=1,300+1,600+1) -> 601 | R70: m3以上 | U70: 35 | V70: =IF(D69="あり",IF($D$67>Q69,($D$67-Q69)*U70,0),0) -> 0
J71: +
J72: ="消費税 "&DBCS(TEXT(date!$G$17*100,0))&"％(F)" -> 消費税 １０％(F) | K72: =ROUNDDOWN(K70*date!G17,0) -> 1800
J73: ↓
I74: 税込合計(E+F) | K74: =SUM(K70,K72) -> 19800 | L74: G
B77: 上下水道料金合計(D+G) | G77: =SUM(K65,K74) -> 34980
I83: 水道料金
B84: 【特殊用】
J86: 準備料金(A) | K86: =(VLOOKUP(D89,準備料金,2,0))*D91 -> 1120
C87: （入力値） | J87: + | O87: 水量料金内訳 | Q87: 使用水量 | U87: 単価 | V87: 金額
J88: 水量料金(B) | K88: =SUM(V88:V89) -> 0 | M88: ⇒ | Q88: =D91*10 -> 10 | R88: m3まで | U88: 290 | V88: =IF(D93<Q89,D93*U88,Q88*U88) -> 0
B89: 口径 | D89: 20 | E89: mm | J89: + | Q89: =(D91*10)+1 -> 11 | R89: m3以上 | U89: 440 | V89: =IF(D93>Q88,(D93-Q88)*U89,0) -> 0
J90: ="消費税 "&DBCS(TEXT(date!$G$17*100,0))&"％(C)" -> 消費税 １０％(C) | K90: =ROUNDDOWN(SUM(K86,K88)*date!G17,0) -> 112
B91: 使用月数 | D91: 1 | E91: ヵ月 | J91: ↓
I92: 税込合計(A+B+C) | K92: =SUM(K86,K88,K90) -> 1232 | L92: D
B93: 使用水量 | D93: 0 | E93: m3
B95: 下水道接続 | D95: あり | I95: 下水道使用料
O96: 下水道使用料内訳 | Q96: 使用水量 | U96: 単価 | V96: 金額
Q97: =D91*5 -> 5 | R97: m3まで | U97: =D91*640 -> 640 | V97: =IF(D95="あり",IF($D$93<Q98,U97,U97),0) -> 640
J98: 下水道使用料(E) | K98: =SUM(V97:V106) -> 640 | M98: ⇒ | Q98: =($D$91*5)+1 -> 6 | R98: ～ | S98: =$D$91*10 -> 10 | T98: m3 | U98: 70 | V98: =IF(D95="あり",IF($D$93<Q99,IF($D$93<Q97,0,($D$93-Q97)*U98),(S98-Q97)*U98),0) -> 0
J99: + | Q99: =($D$91*10)+1 -> 11 | R99: ～ | S99: =$D$91*15 -> 15 | T99: m3 | U99: 95 | V99: =IF(D95="あり",IF($D$93<Q100,IF($D$93<Q99,0,($D$93-S98)*U99),(S99-S98)*U99),0) -> 0
J100: ="消費税 "&DBCS(TEXT(date!$G$17*100,0))&"％(F)" -> 消費税 １０％(F) | K100: =ROUNDDOWN(K98*date!G17,0) -> 64 | Q100: =($D$91*15)+1 -> 16 | R100: ～ | S100: =$D$91*30 -> 30 | T100: m3 | U100: 110 | V100: =IF(D95="あり",IF($D$93<Q101,IF($D$93<Q100,0,($D$93-S99)*U100),(S100-S99)*U100),0) -> 0
J101: ↓ | Q101: =($D$91*30)+1 -> 31 | R101: ～ | S101: =$D$91*100 -> 100 | T101: m3 | U101: 150 | V101: =IF(D95="あり",IF($D$93<Q102,IF($D$93<Q101,0,($D$93-S100)*U101),(S101-S100)*U101),0) -> 0
I102: 税込合計(E+F) | K102: =SUM(K98,K100) -> 704 | L102: G | Q102: =($D$91*100)+1 -> 101 | R102: ～ | S102: =$D$91*500 -> 500 | T102: m3 | U102: 160 | V102: =IF(D95="あり",IF($D$93<Q103,IF($D$93<Q102,0,($D$93-S101)*U102),(S102-S101)*U102),0) -> 0
Q103: =($D$91*500)+1 -> 501 | R103: ～ | S103: =$D$91*1000 -> 1000 | T103: m3 | U103: 170 | V103: =IF(D95="あり",IF($D$93<Q104,IF($D$93<Q103,0,($D$93-S102)*U103),(S103-S102)*U103),0) -> 0
B104: 上下水道料金合計(D+G) | G104: =K92+K102 -> 1936 | Q104: =($D$91*1000)+1 -> 1001 | R104: ～ | S104: =$D$91*5000 -> 5000 | T104: m3 | U104: 180 | V104: =IF(D95="あり",IF($D$93<Q105,IF($D$93<Q104,0,($D$93-S103)*U104),(S104-S103)*U104),0) -> 0
Q105: =($D$91*5000)+1 -> 5001 | R105: ～ | S105: =$D$91*10000 -> 10000 | T105: m3 | U105: 195 | V105: =IF(D95="あり",IF($D$93<Q106,IF($D$93<Q105,0,($D$93-S104)*U105),(S105-S104)*U105),0) -> 0
Q106: =($D$91*10000)+1 -> 10001 | R106: m3以上 | U106: 200 | V106: =IF($D$93>S105,(D93-S105)*U106,0) -> 0

Sheet 市納金一覧
B1: （新設分分岐プール額）（消費税を含む） | I1: 工事検査手数料 （非課税）
B2: 口径 | C2: 基本額 | E2: 本復旧軽減 （舗装道のみ 下段は自己都合の場合） | F2: 先行分岐 | J2: 給水管の呼び径 | K2: 給水装置工事又は私・共有管布設工事
C3: 舗装道 | D3: 砂利道 | K3: 新設、全改造 | L3: 増設その他
B4: 13mm | C4: =date!E16 -> 407000 | D4: =date!E4 -> 242000 | J4: 全ての口径 | K4: =date!E41 -> 19300 | L4: =date!E42 -> 4300
B5: 20mm | C5: =date!E17 -> 407000 | D5: =date!E5 -> 242000 | E5: =date!E35 -> -81400 | J5: （適用）
B6: 25mm | C6: =date!E18 -> 466400 | D6: =date!E6 -> 297000 | E6: =date!G35 -> -40700 | J6: ⑴ 給水装置工事の中で、内部工事を伴わない先行分岐等の工事検査手数料は、増設の基準を適用する。
B7: 40mm | C7: =date!E19 -> 1311200 | D7: =date!E7 -> 751300
B8: 50mm | C8: =date!E20 -> 4250400 | D8: =date!E8 -> 2898500 | F8: =date!G21 -> 5500 | J8: ⑵ 本表の工事検査手数料は、１件１工事２ｍ未満の私、共有管及び修繕等の工事には適用しない。
B9: 75mm | C9: =date!E21 -> 5909200 | D9: =date!E9 -> 4250400 | E9: =date!E36 -> -126500
B10: 100mm | C10: =date!E22 -> 6191900 | D10: =date!E10 -> 4616700 | E10: =date!G36 -> -63250 | J10: ⑶ 再検査を必要とする場合については、再度、同額の手数料を徴収する。
B11: 150mm | C11: =date!E23 -> 8549200 | D11: =date!E11 -> 6372300
B12: 200mm | C12: =date!E24 -> 17317300 | D12: =date!E12 -> 12929400
B13: ※ 夜間工事を要する分岐プール額は35％増し（夜間工事での舗装本復旧軽減額も35％増し）
B14: ※ 自己都合による舗装本復旧の軽減額は他の軽減事由の1/2となります。
B15: （撤去分分岐プール額）（全口径同一 消費税を含む） 1装置につき
C16: 舗装道 | D16: 砂利道 | E16: ※ 公道又は公道とみなされる場所で実撤去工事が施工されるとき
B17: 昼間 | C17: =date!F47 -> 192500 | D17: =date!E47 -> 110000 | E17: ※ 舗装道での撤去は市で舗装本復旧を施工します。
B18: 夜間 | C18: =date!F48 -> 259875 | D18: =date!E48 -> 148500
B20: （加入金）（消費税を含む）
B21: 一般（甲新設） | C21: 口径 | D21: 基本額 | E21: 元口径
E22: 13mm | F22: 20mm | G22: 25mm | H22: 40mm | I22: 50mm | J22: 75mm | K22: 100mm | L22: 150mm
C23: 13mm | D23: =date!K5 -> 66000
C24: 20mm | D24: =date!K6 -> 115500 | E24: =D24-$D$23 -> 49500
C25: 25mm | D25: =date!K7 -> 198000 | E25: =D25-$D$23 -> 132000 | F25: =D25-$D$24 -> 82500
C26: 40mm | D26: =date!K8 -> 825000 | E26: 759000 | F26: 709500 | G26: =D26-$D$25 -> 627000
C27: 50mm | D27: =date!K9 -> 2475000 | E27: 2409000 | F27: 2359500 | G27: 2277000 | H27: =D27-$D$26 -> 1650000
C28: 75mm | D28: =date!K10 -> 4950000 | E28: 4884000 | F28: 4834500 | G28: 4752000 | H28: =D28-$D$26 -> 4125000 | I28: =D28-$D$27 -> 2475000
C29: 100mm | D29: =date!K11 -> 9900000 | E29: 9834000 | F29: 9784500 | G29: 9702000 | H29: =D29-$D$26 -> 9075000 | I29: =D29-$D$27 -> 7425000 | J29: =D29-$D$28 -> 4950000
C30: 150mm | D30: =date!K12 -> 19800000 | E30: 19734000 | F30: 19684500 | G30: 19602000 | H30: =D30-$D$26 -> 18975000 | I30: =D30-$D$27 -> 17325000 | J30: =D30-$D$28 -> 14850000 | K30: =D30-$D$29 -> 9900000
C31: 200mm | D31: =date!K13 -> 39600000 | E31: 39534000 | F31: 39484500 | G31: 39402000 | H31: =D31-$D$26 -> 38775000 | I31: =D31-$D$27 -> 37125000 | J31: =D31-$D$28 -> 34650000 | K31: =D31-$D$29 -> 29700000 | L31: =D31-D30 -> 19800000
B32: 生産用（乙新設） | C32: 13mm | D32: =date!M5 -> 176000
C33: 20mm | D33: =date!M6 -> 308000 | E33: =D33-$D$32 -> 132000
C34: 25mm | D34: =date!M7 -> 528000 | E34: 352000 | F34: =D34-$D$33 -> 220000
C35: 40mm | D35: =date!M8 -> 2200000 | E35: 2024000 | F35: =D35-$D$33 -> 1892000 | G35: =D35-$D$34 -> 1672000
C36: 50mm | D36: =date!M9 -> 6600000 | E36: 6424000 | F36: 6292000 | G36: 6072000 | H36: =D36-$D$35 -> 4400000
C37: 75mm | D37: =date!M10 -> 13200000 | E37: 13024000 | F37: 12892000 | G37: 12672000 | H37: =D37-$D$35 -> 11000000 | I37: =D37-$D$36 -> 6600000
C38: 100mm | D38: =date!M11 -> 26400000 | E38: 26224000 | F38: 26092000 | G38: 25872000 | H38: =D38-$D$35 -> 24200000 | I38: =D38-$D$36 -> 19800000 | J38: =D38-$D$37 -> 13200000
C39: 150mm | D39: =date!M12 -> 52800000 | E39: 52624000 | F39: 52492000 | G39: 52272000 | H39: =D39-$D$35 -> 50600000 | I39: =D39-$D$36 -> 46200000 | J39: =D39-$D$37 -> 39600000 | K39: =D39-$D$38 -> 26400000
C40: 200mm | D40: =date!M13 -> 105600000 | E40: 105424000 | F40: 105292000 | G40: 105072000 | H40: =D40-$D$35 -> 103400000 | I40: =D40-$D$36 -> 99000000 | J40: =D40-$D$37 -> 92400000 | K40: =D40-$D$38 -> 79200000 | L40: =D40-D39 -> 52800000

Sheet date (hidden)
B2: 口径1 | D2: 新設分分岐プール額 | G2: 口径変更（砂利道） | J2: 加入金
B3: なし | D3: 口径 | E3: 砂利道 | G3: あり | H3: 0 | J3: 甲 | L3: 乙
B4: 13 | D4: 13 | E4: 242000 | G4: なし | H4: 0 | J4: なし | K4: 0 | L4: なし | M4: 0
B5: 20 | D5: 20 | E5: 242000 | J5: 13 | K5: 66000 | L5: 13 | M5: 176000
B6: 25 | D6: 25 | E6: 297000 | J6: 20 | K6: 115500 | L6: 20 | M6: 308000
B7: 30 | D7: 40 | E7: 751300 | G7: 口径変更（舗装道） | J7: 25 | K7: 198000 | L7: 25 | M7: 528000
B8: 40 | D8: 50 | E8: 2898500 | G8: あり | H8: 0 | J8: 40 | K8: 825000 | L8: 40 | M8: 2200000
B9: 50 | D9: 75 | E9: 4250400 | G9: なし | H9: 0 | J9: 50 | K9: 2475000 | L9: 50 | M9: 6600000
B10: 75 | D10: 100 | E10: 4616700 | J10: 75 | K10: 4950000 | L10: 75 | M10: 13200000
B11: 100 | D11: 150 | E11: 6372300 | G11: 口径3 | J11: 100 | K11: 9900000 | L11: 100 | M11: 26400000
B12: 150 | D12: 200 | E12: 12929400 | G12: 40以下 | J12: 150 | K12: 19800000 | L12: 150 | M12: 52800000
G13: 50以上 | J13: 200 | K13: 39600000 | L13: 200 | M13: 105600000
D14: 新設分分岐プール額
B15: 口径2 | D15: 口径 | E15: 舗装道
B16: 13 | D16: 13 | E16: 407000 | G16: 消費税 | J16: 準備料金1
B17: 20 | D17: 20 | E17: 407000 | G17: 0.1 | J17: 口径 | K17: 単価
B18: 25 | D18: 25 | E18: 466400 | J18: 13 | K18: 1010
B19: 40 | D19: 40 | E19: 1311200 | J19: 20 | K19: 1120
B20: 50 | D20: 50 | E20: 4250400 | G20: 先行分岐 | J20: 25 | K20: 2400
B21: 75 | D21: 75 | E21: 5909200 | G21: 5500 | J21: 30 | K21: 4300
B22: 100 | D22: 100 | E22: 6191900 | J22: 40 | K22: 11000
B23: 150 | D23: 150 | E23: 8549200 | J23: 50 | K23: 50000
B24: 200 | D24: 200 | E24: 17317300 | J24: 75 | K24: 115000
J25: 100 | K25: 250000
J26: 150 | K26: 500000
B28: 道路形態 | D28: 舗装道 | F28: 砂利道
B29: 砂利道 | D29: あり | F29: なし
B30: 舗装道 | D30: 自己都合 | J30: 準備料金2
D31: なし | J31: 口径 | K31: 単価
J32: 40以下 | K32: 6900
B33: 撤去口径 | D33: 本復旧軽減（舗装道のみ） | G33: 自己都合での軽減 | J33: 50以上 | K33: 30000
B34: なし | D34: 分岐口径 | E34: 単価（昼間） | F34: 単価（夜間） | G34: 単価（昼間） | H34: 単価（夜間）
B35: 13 | D35: 13～40 | E35: -81400 | F35: -109890 | G35: =E35/2 -> -40700 | H35: =F35/2 -> -54945
B36: 20 | D36: 50以上 | E36: -126500 | F36: -170775 | G36: =E36/2 -> -63250 | H36: =ROUNDUP(F36/2,0) -> -85388
B37: 25
B38: 40
B39: 50
B40: 75 | D40: 検査手数料
B41: 100 | D41: 新設・建て替え | E41: 19300
B42: 150 | D42: 増設・先行分岐 | E42: 4300
B43: 200
D45: 撤去分分岐プール額（全口径同一）
D46: 昼/夜別 | E46: 砂利道 | F46: 舗装道
D47: 昼間 | E47: 110000 | F47: 192500
D48: 夜間 | E48: 148500 | F48: 259875
